lending/lending_fUSD_20250719
["ID","MTS","AMOUNT","RATE_DAILY","PERIOD"]
[373194854,1752900654378,-480.0,0.00019833,2]
[373194856,1752900654389,-480.0,0.00019833,2]
[373194858,1752900654399,-480.0,0.00019833,2]
[373194860,1752900654410,-480.0,0.00019833,2]
[373194863,1752900654421,-929.71,0.00019833,2]
[373194865,1752900654432,-480.0,0.00019833,2]
[373194867,1752900654443,-480.0,0.00019833,2]
[373194869,1752900654454,-487.47,0.00019833,2]
[373194871,1752900654465,-480.0,0.00019833,2]
[373194873,1752900654475,-668.94,0.00019833,2]
[373194875,1752900654486,-592.5,0.00019833,2]
[373194877,1752900654496,-880.54,0.00019833,2]
[373194879,1752900654507,-578.76,0.00019833,2]
[373194881,1752900654518,-480.0,0.00019833,2]
[373194884,1752900654529,-1348.49,0.00019833,2]
[373194886,1752900654539,-480.0,0.00019833,2]
[373194888,1752900654550,-480.0,0.00019833,2]
[373194890,1752900654561,-480.0,0.00019833,2]
[373194892,1752900654571,-1882.93,0.00019833,2]
[373194894,1752900654581,-480.0,0.00019833,2]
[373194896,1752900654595,-480.0,0.00019833,2]
[373194898,1752900654606,-841.43,0.00019833,2]
[373194900,1752900654617,-480.0,0.00019833,2]
[373194903,1752900654627,-480.0,0.00019833,2]
[373194905,1752900654638,-246.11717396,0.00019833,2]
[373194909,1752900654672,-370.84282604,0.00019833,2]
[373194911,1752900654688,-480.0,0.00019833,2]
[373194913,1752900654699,-1810.38,0.00019833,2]
[373194916,1752900654711,-1087.03,0.00019833,2]
[373194918,1752900654722,-609.34,0.00019833,2]
[373194920,1752900654732,-335.43554077,0.00019833,2]
[373194982,1752900655520,-510.16445923,0.00019833,2]
[373194983,1752900655530,-423.84808664,0.00019833,2]
[373194984,1752900655541,-430.94191336,0.00019833,2]
[373194985,1752900655551,-480.0,0.00019833,2]
[373194986,1752900655561,-254.77018524,0.00019833,2]
[373194987,1752900655590,-431.50981476,0.00019833,2]
[373194988,1752900655600,-119.74595426,0.00019834,2]
[373194989,1752900655619,-360.25404574,0.00019834,2]
[373194990,1752900655629,-480.0,0.00019834,2]
[373194991,1752900655639,-190.41325459,0.00019834,2]
[373194997,1752900934863,1000.0,0.0002501,120]
[373195000,1752901098240,180.92,0.00013699,2]
[373195023,1752901811663,1666.0,0.000141,14]
[373195025,1752901831763,-150.0,0.000173,2]
[373195026,1752901831785,-150.0,0.00017481,2]
[373195027,1752901831798,-106.80709008,0.00017481,2]
[373195028,1752901831810,-53.44290992,0.00017481,2]
[373195029,1752901831819,-150.0,0.000175,2]
[373195030,1752901831829,-150.0,0.00017591,2]
[373195031,1752901831838,-150.0,0.00017616,2]
[373195032,1752901831847,-150.0,0.00017629,2]
[373195033,1752901831856,-150.0,0.00017632,2]
[373195034,1752901831866,-150.0,0.00017782,2]
[373195035,1752901831875,-150.0,0.00017844,2]
[373195036,1752901831885,-70.66367405,0.00017859,2]
[373195037,1752901831942,-79.33632595,0.00017859,2]
[373195038,1752901831951,-176.40653046,0.00017892,2]
[373195039,1752901831962,-325.59346954,0.00017892,2]
[373195040,1752901831972,-304.15,0.00017932,2]
[373195041,1752901831981,-150.0,0.00017937,2]
[373195042,1752901831992,-151.0,0.00017941,2]
[373195043,1752901832002,-364.71882305,0.00017951,2]
[373195044,1752901832013,-229.28117695,0.00017951,2]
[373195045,1752901832022,-6377.53912372,0.00017952,2]
[373195046,1752901832034,-7002.23423606,0.00017952,2]
[373195047,1752901832051,-1189.09794105,0.00017952,2]
[373195048,1752901832062,-836.52012881,0.00017952,2]
[373195049,1752901832074,-8494.60857036,0.00017952,2]
[373195050,1752901832083,-150.0,0.00018134,2]
[373195051,1752901832094,-150.0,0.00018146,2]
[373195052,1752901832103,-150.0,0.00018187,2]
[373195053,1752901832112,-202.76,0.00018196,2]
[373195054,1752901832122,-150.0,0.0001823,2]
[373195055,1752901832132,-2751.0,0.00018292,2]
[373195056,1752901832142,-311.82,0.00018329,2]
[373195057,1752901832151,-1000.0,0.00018341,2]
[373195058,1752901832161,-151.0,0.00018353,2]
[373195059,1752901832171,-151.0,0.00018354,2]
[373195060,1752901832181,-151.0,0.00018354,2]
[373195061,1752901832191,-222.03,0.00018395,2]
[373195062,1752901832200,-150.0,0.0001841,2]
[373195063,1752901832210,-150.0,0.00018435,2]
[373195064,1752901832220,-104.00023562,0.000185,2]
[373195065,1752901832231,-2559.84782532,0.000185,2]
[373195066,1752901832243,-1835.36937462,0.000185,2]
[373195068,1752901832287,-594.15485795,0.000185,2]
[373195069,1752901832299,-815.29122692,0.000185,2]
[373195077,1752901837716,-1234.19247957,0.000185,2]
[373195078,1752901837726,-151.0,0.000185,2]
[373195079,1752901837738,-207.4,0.000185,2]
[373195080,1752901837748,-337.79247619,0.000185,2]
[373195081,1752901837758,-1000.0,0.0001855,2]
[373195082,1752901837768,-150.0,0.00018551,2]
[373195083,1752901837778,-219.43,0.00018554,2]
[373195084,1752901837789,-1796.9049355,0.00018555,2]
[373195085,1752901837799,-182.18,0.0001863,2]
[373195086,1752901837808,-150.0,0.00018639,2]
[373195087,1752901837819,-708.15,0.00018741,2]
[373195088,1752901837828,-150.0,0.00018759,2]
[373195089,1752901837838,-190.0,0.0001878,2]
[373195090,1752901837848,-150.0,0.00018878,2]
[373195091,1752901837858,-150.0,0.00018892,2]
[373195092,1752901837867,-150.0,0.00018902,2]
[373195093,1752901837877,-150.0,0.00018979,2]
[373195094,1752901837887,-250.0,0.00019,7]
[373195095,1752901837897,-150.0,0.00019064,2]
[373195096,1752901837907,-150.0,0.00019095,2]
[373195097,1752901837917,-300.0,0.00019127,2]
[373195098,1752901837927,-348.20202481,0.00019178,2]
[373195099,1752901837936,-480.0,0.00019178,2]
[373195100,1752901837946,-151.0,0.00019178,2]
[373195101,1752901837955,-152.13,0.00019178,2]
[373195102,1752901837965,-210.67,0.00019178,2]
[373195103,1752901837975,-15191.4882987,0.00019178,2]
[373195104,1752901837985,-500.0,0.00019196,2]
[373195105,1752901837994,-339.09747262,0.00019196,2]
[373195106,1752901838055,-140.90252738,0.00019196,2]
[373195107,1752901838065,-480.0,0.00019196,2]
[373195108,1752901838075,-384.71812335,0.00019196,2]
[373195109,1752901838086,-617.60187665,0.00019196,2]
[373195110,1752901838096,-389.06427096,0.00019196,2]
[373195111,1752901838141,-294.11572904,0.00019196,2]
[373195112,1752901838151,-565.24,0.00019196,2]
[373195113,1752901838162,-154.51775142,0.00019196,2]
[373195284,1752901839977,-168.43600757,0.00019196,2]
[373195287,1752901839987,-150.0,0.00019207,2]
[373195289,1752901839996,-2500.0,0.00019229,2]
[373195290,1752901840005,-1000.0,0.00019229,2]
[373195292,1752901840015,-219.43,0.0001925,2]
[373195294,1752901840025,-476.80070012,0.0001928,2]
[373195296,1752901840034,-210.82967408,0.0001928,2]
[373195299,1752901840044,-839.16344753,0.0001928,2]
[373195301,1752901840053,-480.0,0.00019284,2]
[373195303,1752901840063,-553.6,0.00019284,2]
[373195304,1752901840073,-480.0,0.00019284,2]
[373195307,1752901840089,-480.0,0.00019284,2]
[373195309,1752901840102,-480.0,0.00019284,2]
[373195311,1752901840112,-480.0,0.00019284,2]
[373195313,1752901840122,-2154.52,0.00019284,2]
[373195315,1752901840132,-480.0,0.00019284,2]
[373195317,1752901840144,-480.0,0.00019284,2]
[373195319,1752901840153,-673.89,0.00019284,2]
[373195321,1752901840162,-480.0,0.00019284,2]
[373195322,1752901840172,-480.0,0.00019284,2]
[373195324,1752901840181,-593.52,0.00019284,2]
[373195326,1752901840191,-480.0,0.00019284,2]
[373195328,1752901840200,-480.0,0.00019284,2]
[373195330,1752901840210,-692.85,0.00019284,2]
[373195332,1752901840219,-480.0,0.00019284,2]
[373195334,1752901840229,-480.0,0.00019284,2]
[373195336,1752901840238,-499.72,0.00019284,2]
[373195338,1752901840248,-511.31,0.00019284,2]
[373195340,1752901840258,-2112.54104609,0.00019285,2]
[373195347,1752901840314,-379.40895391,0.00019285,2]
[373195349,1752901840325,-100.71800323,0.00019285,2]
[373195750,1752901843717,-379.28199677,0.00019285,2]
[373195752,1752901843727,-697.29,0.00019285,2]
[373195754,1752901843739,-480.0,0.00019285,2]
[373195756,1752901843748,-480.0,0.00019285,2]
[373195758,1752901843758,-480.0,0.00019285,2]
[373195760,1752901843768,-501.71,0.00019285,2]
[373195762,1752901843778,-420.16779492,0.00019287,2]
[373195764,1752901843787,-451.14905868,0.00019306,2]
[373195766,1752901843796,-1002.32,0.00019306,2]
[373195768,1752901843805,-683.18,0.00019306,2]
[373195770,1752901843816,-565.24,0.00019306,2]
[373195772,1752901843826,-2402.0,0.00019348,2]
[373195774,1752901843835,-873.869,0.00019379,2]
[373195776,1752901843844,-807.0,0.00019379,2]
[373195778,1752901843853,-3465.122,0.00019379,2]
[373195780,1752901843863,-480.0,0.00019394,2]
[373195782,1752901843872,-480.0,0.00019394,2]
[373195784,1752901843881,-480.0,0.00019394,2]
[373195786,1752901843890,-480.0,0.00019394,2]
[373195788,1752901843899,-2154.52,0.00019394,2]
[373195790,1752901843908,-480.0,0.00019394,2]
[373195792,1752901843917,-480.0,0.00019394,2]
[373195794,1752901843925,-673.89,0.00019394,2]
[373195796,1752901843934,-480.0,0.00019394,2]
[373195798,1752901843943,-480.0,0.00019394,2]
[373195800,1752901843953,-593.52,0.00019394,2]
[373195802,1752901843962,-480.0,0.00019394,2]
[373195804,1752901843971,-480.0,0.00019394,2]
[373195806,1752901843981,-692.85,0.00019394,2]
[373195808,1752901843991,-480.0,0.00019394,2]
[373195810,1752901844000,-480.0,0.00019394,2]
[373195812,1752901844009,-499.72,0.00019394,2]
[373195814,1752901844018,-511.31,0.00019394,2]
[373195816,1752901844028,-2491.95,0.00019395,2]
[373195818,1752901844037,-480.0,0.00019395,2]
[373195820,1752901844047,-697.29,0.00019395,2]
[373195822,1752901844056,-480.0,0.00019395,2]
[373195824,1752901844065,-480.0,0.00019395,2]
[373195826,1752901844075,-480.0,0.00019395,2]
[373195828,1752901844085,-500.0,0.00019396,2]
[373195830,1752901844095,-150.0,0.00019396,2]
[373195832,1752901844104,-170.644,0.00019397,2]
[373195834,1752901844113,-2679.797,0.00019397,2]
[373195836,1752901844122,-2500.0,0.00019403,2]
[373195838,1752901844132,-1000.0,0.00019403,2]
[373195840,1752901844141,-5924.67004634,0.00019405,2]
[373195842,1752901844151,-1002.32,0.00019415,2]
[373195844,1752901844160,-683.18,0.00019415,2]
[373195846,1752901844170,-565.24,0.00019415,2]
[373195848,1752901844178,-942.089344,0.00019437,2]
[373195850,1752901844188,-200.0,0.00019441,2]
[373195852,1752901844197,-200.0,0.00019448,2]
[373195854,1752901844207,-150.0,0.00019453,2]
[373195856,1752901844216,-480.0,0.00019503,2]
[373195858,1752901844225,-480.0,0.00019503,2]
[373195860,1752901844234,-480.0,0.00019503,2]
[373195862,1752901844244,-480.0,0.00019503,2]
[373195864,1752901844254,-2154.52,0.00019503,2]
[373195866,1752901844264,-480.0,0.00019503,2]
[373195868,1752901844273,-480.0,0.00019503,2]
[373195870,1752901844283,-673.89,0.00019503,2]
[373195871,1752901844292,-480.0,0.00019503,2]
[373195874,1752901844302,-480.0,0.00019503,2]
[373195876,1752901844311,-593.52,0.00019503,2]
[373195878,1752901844322,-480.0,0.00019503,2]
[373195880,1752901844332,-480.0,0.00019503,2]
[373195882,1752901844341,-692.85,0.00019503,2]
[373195884,1752901844351,-480.0,0.00019503,2]
[373195886,1752901844360,-480.0,0.00019503,2]
[373195887,1752901844370,-499.72,0.00019503,2]
[373195889,1752901844379,-511.31,0.00019503,2]
[373195891,1752901844388,-2491.95,0.00019504,2]
[373195893,1752901844397,-480.0,0.00019504,2]
[373195895,1752901844407,-697.29,0.00019504,2]
[373195897,1752901844416,-480.0,0.00019504,2]
[373195899,1752901844426,-480.0,0.00019504,2]
[373195901,1752901844435,-480.0,0.00019504,2]
[373195904,1752901844445,-480.0,0.00019505,2]
[373195905,1752901844454,-480.0,0.00019505,2]
[373195908,1752901844464,-613.75,0.00019505,2]
[373195909,1752901844473,-480.0,0.00019505,2]
[373195911,1752901844483,-480.0,0.00019505,2]
[373195913,1752901844492,-480.0,0.00019505,2]
[373195915,1752901844501,-480.0,0.00019505,2]
[373195917,1752901844510,-480.0,0.00019505,2]
[373195919,1752901844520,-634.54,0.00019505,2]
[373195921,1752901844529,-480.0,0.00019505,2]
[373195923,1752901844539,-480.0,0.00019505,2]
[373195925,1752901844548,-150.0,0.00019515,2]
[373195927,1752901844557,-480.0,0.00019524,2]
[373195929,1752901844567,-356.22956912,0.00019524,2]
[373195931,1752901844576,-480.0,0.00019524,2]
[373195933,1752901844585,-173.71125189,0.00019524,2]
[373195935,1752901844594,-412.93378078,0.00019524,2]
[373195937,1752901844603,-480.0,0.00019524,2]
[373195939,1752901844612,-480.0,0.00019524,2]
[373195942,1752901844621,-477.60187914,0.00019524,2]
[373195944,1752901844631,-480.0,0.00019524,2]
[373195945,1752901844641,-1038.76,0.00019524,2]
[373195948,1752901844650,-191.44599894,0.00019524,2]
[373195949,1752901844663,-480.0,0.00019524,2]
[373195952,1752901844672,-492.86049236,0.00019524,2]
[373195953,1752901844682,-480.0,0.00019524,2]
[373195956,1752901844692,-160.09467151,0.00019524,2]
[373195957,1752901844701,-480.0,0.00019524,2]
[373195959,1752901844710,-480.0,0.00019524,2]
[373195962,1752901844721,-480.0,0.00019524,2]
[373195964,1752901844730,-480.0,0.00019524,2]
[373195966,1752901844743,-874.15,0.00019524,2]
[373195968,1752901844752,-216.38973764,0.00019524,2]
[373195970,1752901844761,-480.0,0.00019524,2]
[373195972,1752901844771,-480.0,0.00019524,2]
[373195974,1752901844781,-432.20597383,0.00019524,2]
[373195976,1752901844791,-480.0,0.00019524,2]
[373195978,1752901844800,-480.0,0.00019524,2]
[373195980,1752901844809,-480.0,0.00019524,2]
[373195982,1752901844821,-1117.99,0.00019524,2]
[373195984,1752901844830,-480.0,0.00019524,2]
[373195986,1752901844840,-826.42,0.00019524,2]
[373195988,1752901844851,-480.0,0.00019524,2]
[373195990,1752901844860,-874.97,0.00019524,2]
[373195991,1752901844869,-480.0,0.00019524,2]
[373195992,1752901844878,-660.4,0.00019524,2]
[373195993,1752901844888,-480.0,0.00019524,2]
[373195994,1752901844897,-480.0,0.00019524,2]
[373195995,1752901844907,-625.0,0.00019524,2]
[373195996,1752901844916,-480.0,0.00019524,2]
[373195997,1752901844926,-1357.78,0.00019524,2]
[373195998,1752901844936,-480.0,0.00019524,2]
[373195999,1752901844945,-459.02382648,0.00019524,2]
[373196000,1752901844954,-480.0,0.00019524,2]
[373196001,1752901844963,-480.0,0.00019524,2]
[373196003,1752901844972,-480.0,0.00019524,2]
[373196004,1752901844982,-480.0,0.00019524,2]
[373196006,1752901844991,-480.0,0.00019524,2]
[373196008,1752901845000,-480.0,0.00019524,2]
[373196010,1752901845012,-455.58800868,0.00019524,2]
[373196012,1752901845021,-480.0,0.00019524,2]
[373196014,1752901845030,-480.0,0.00019524,2]
[373196016,1752901845040,-480.0,0.00019524,2]
[373196018,1752901845050,-641.1,0.00019524,2]
[373196020,1752901845059,-514.95,0.00019524,2]
[373196022,1752901845069,-1002.32,0.00019525,2]
[373196024,1752901845078,-683.18,0.00019525,2]
[373196026,1752901845088,-565.24,0.00019525,2]
[373196028,1752901845097,-462.48925063,0.00019534,2]
[373196030,1752901845107,-2500.0,0.00019535,2]
[373196032,1752901845116,-480.0,0.00019613,2]
[373196034,1752901845126,-480.0,0.00019613,2]
[373196036,1752901845135,-480.0,0.00019613,2]
[373196038,1752901845145,-480.0,0.00019613,2]
[373196040,1752901845154,-480.0,0.00019613,2]
[373196042,1752901845164,-2154.52,0.00019613,2]
[373196044,1752901845174,-480.0,0.00019613,2]
[373196046,1752901845183,-480.0,0.00019613,2]
[373196048,1752901845192,-673.89,0.00019613,2]
[373196050,1752901845203,-480.0,0.00019613,2]
[373196052,1752901845211,-480.0,0.00019613,2]
[373196054,1752901845221,-480.0,0.00019613,2]
[373196056,1752901845230,-480.0,0.00019613,2]
[373196058,1752901845239,-480.0,0.00019613,2]
[373196060,1752901845249,-863.15,0.00019613,2]
[373196062,1752901845258,-480.0,0.00019613,2]
[373196064,1752901845267,-577.71,0.00019613,2]
[373196066,1752901845276,-593.52,0.00019613,2]
[373196068,1752901845286,-480.0,0.00019613,2]
[373196070,1752901845295,-480.0,0.00019613,2]
[373196072,1752901845304,-1214.88,0.00019613,2]
[373196074,1752901845315,-480.0,0.00019613,2]
[373196076,1752901845324,-698.82,0.00019613,2]
[373196078,1752901845334,-480.0,0.00019613,2]
[373196080,1752901845343,-480.0,0.00019613,2]
[373196082,1752901845353,-480.0,0.00019613,2]
[373196084,1752901845363,-6610.45,0.00019613,2]
[373196086,1752901845372,-692.85,0.00019613,2]
[373196088,1752901845382,-851.75,0.00019613,2]
[373196090,1752901845393,-484.85,0.00019613,2]
[373196092,1752901845402,-480.0,0.00019613,2]
[373196094,1752901845411,-480.0,0.00019613,2]
[373196096,1752901845421,-479.44996741,0.00019613,2]
[373196098,1752901845430,-480.0,0.00019613,2]
[373196100,1752901845440,-499.72,0.00019613,2]
[373196102,1752901845449,-591.28,0.00019613,2]
[373196105,1752901845459,-511.31,0.00019613,2]
[373196107,1752901845468,-2491.95,0.00019614,2]
[373196109,1752901845477,-480.0,0.00019614,2]
[373196111,1752901845487,-697.29,0.00019614,2]
[373196113,1752901845496,-167.24625949,0.00019614,2]
[373196115,1752901845505,-480.0,0.00019614,2]
[373196118,1752901845515,-480.0,0.00019614,2]
[373196120,1752901845524,-480.0,0.00019615,2]
[373196123,1752901845533,-189.61631905,0.00019615,2]
[373196150,1752901845779,-290.38368095,0.00019615,2]
[373196152,1752901845788,-613.75,0.00019615,2]
[373196154,1752901845797,-480.0,0.00019615,2]
[373196156,1752901845807,-480.0,0.00019615,2]
[373196157,1752901845816,-480.0,0.00019615,2]
[373196159,1752901845826,-480.0,0.00019615,2]
[373196162,1752901845836,-480.0,0.00019615,2]
[373196164,1752901845845,-634.54,0.00019615,2]
[373196166,1752901845855,-480.0,0.00019615,2]
[373196167,1752901845864,-480.0,0.00019615,2]
[373196169,1752901845873,-474.51340483,0.00019624,2]
[373196172,1752901845885,-84.30659517,0.00019624,2]
[373196174,1752901845895,-300.84807676,0.00019626,2]
[373196176,1752901845904,-544.37,0.00019633,2]
[373196178,1752901845914,-480.0,0.00019633,2]
[373196180,1752901845923,-480.0,0.00019633,2]
[373196182,1752901845932,-480.0,0.00019633,2]
[373196184,1752901845941,-1121.61,0.00019633,2]
[373196186,1752901845951,-317.83945926,0.00019633,2]
[373196190,1752901845983,-203.21054074,0.00019633,2]
[373196192,1752901845992,-480.0,0.00019633,2]
[373196194,1752901846001,-480.0,0.00019633,2]
[373196196,1752901846010,-480.0,0.00019633,2]
[373196198,1752901846020,-491.79,0.00019633,2]
[373196200,1752901846029,-480.0,0.00019633,2]
[373196202,1752901846039,-480.0,0.00019633,2]
[373196204,1752901846048,-480.0,0.00019633,2]
[373196206,1752901846058,-480.0,0.00019633,2]
[373196208,1752901846067,-1021.93,0.00019633,2]
[373196210,1752901846076,-1314.33,0.00019633,2]
[373196212,1752901846085,-513.23945926,0.00019633,2]
[373196233,1752901846288,-480.0,0.00019196,2]
[373196235,1752901846297,-501.71,0.00019395,2]
[373196237,1752901846307,-501.71,0.00019504,2]
[373196239,1752901846317,-494.74054074,0.00019633,2]
[373196241,1752901846326,-549.35,0.00019633,2]
[373196243,1752901846335,-480.0,0.00019633,2]
[373196245,1752901846345,-288.78278525,0.00019633,2]
[373196247,1752901846355,-480.0,0.00019633,2]
[373196249,1752901846364,-480.0,0.00019633,2]
[373196251,1752901846374,-480.0,0.00019633,2]
[373196253,1752901846383,-480.0,0.00019634,2]
[373196255,1752901846393,-480.0,0.00019634,2]
[373196257,1752901846403,-480.0,0.00019634,2]
[373196259,1752901846413,-480.0,0.00019634,2]
[373196261,1752901846422,-480.0,0.00019634,2]
[373196263,1752901846432,-1038.76,0.00019634,2]
[373196265,1752901846441,-480.0,0.00019634,2]
[373196267,1752901846450,-480.0,0.00019634,2]
[373196269,1752901846459,-480.0,0.00019634,2]
[373196271,1752901846468,-480.0,0.00019634,2]
[373196273,1752901846477,-480.0,0.00019634,2]
[373196275,1752901846487,-480.0,0.00019634,2]
[373196277,1752901846496,-704.41867401,0.00019634,2]
[373196280,1752901846508,-169.73132599,0.00019634,2]
[373196282,1752901846518,-480.0,0.00019634,2]
[373196284,1752901846527,-480.0,0.00019634,2]
[373196285,1752901846536,-480.0,0.00019634,2]
[373196288,1752901846546,-480.0,0.00019634,2]
[373196290,1752901846555,-316.23806054,0.00019634,2]
[373196293,1752901846579,-163.76193946,0.00019634,2]
[373196295,1752901846588,-1117.99,0.00019634,2]
[373196297,1752901846598,-480.0,0.00019634,2]
[373196299,1752901846607,-826.42,0.00019634,2]
[373196301,1752901846616,-480.0,0.00019634,2]
[373196325,1752901846837,-874.97,0.00019634,2]
[373196328,1752901846847,-660.4,0.00019634,2]
[373196330,1752901846856,-480.0,0.00019634,2]
[373196332,1752901846865,-480.0,0.00019634,2]
[373196334,1752901846874,-625.0,0.00019634,2]
[373196335,1752901846884,-480.0,0.00019634,2]
[373196338,1752901846894,-971.76988054,0.00019634,2]
[373196340,1752901846910,-312.84914965,0.00019634,2]
[373197072,1752901854791,2895.3881543,0.00025,120]
[373198010,1752901877706,611.0,0.00014001,2]
[373198011,1752902185412,950.271455,0.0002501,120]
[373198012,1752902389914,3100.0,0.0002501,120]
[373198013,1752902593906,2000.0,0.00024981,120]
[373198014,1752902600049,500.0,0.00024981,120]
[373198015,1752902648388,171.87,0.00013699,2]
[373198019,1752902736889,287.63,0.00023,30]
[373198020,1752902803165,-294.69039536,0.00014892,2]
[373198033,1752902961073,-207.30960464,0.00014892,2]
[373198034,1752902961097,-1241.38099285,0.00015,2]
[373198035,1752902961119,-158.21716651,0.00015,2]
[373198048,1752903032272,-1841.32281919,0.00015,2]
[373198049,1752903032282,-150.0,0.000175,2]
[373198050,1752903032291,-422.78517986,0.000175,2]
[373198051,1752903032336,-76.90032768,0.000175,2]
[373198052,1752903032345,-582.94212508,0.00018169,2]
[373198053,1752903032357,-1308.8879803,0.00018169,2]
[373198054,1752903032366,-3127.86171169,0.00018212,2]
[373198055,1752903032378,-4686.09902776,0.00018212,2]
[373198058,1752903032400,-872.8874994,0.00018212,2]
[373198072,1752903037822,-104.86176115,0.00018212,2]
[373198073,1752903037832,-270.5252174,0.00018391,2]
[373198074,1752903037878,-1232.96084312,0.00018391,2]
[373198075,1752903037893,-151.0,0.00018434,2]
[373198076,1752903037902,-5031.4533317,0.00018485,2]
[373198077,1752903038043,-438.9054399,0.00018485,2]
[373198078,1752903038098,-1071.99311519,0.00018485,2]
[373198288,1752903040231,-288.86,0.00018333,2]
[373198290,1752903040240,-1554.90202878,0.00018485,2]
[373198292,1752903040252,-467.34217215,0.00018485,2]
[373198296,1752903040287,-326.07483483,0.00018485,2]
[373198580,1752903043179,-5144.94110186,0.00018485,2]
[373198846,1752903046001,-5033.993174,0.00018485,2]
[373198884,1752903046445,-297.7278,0.00018485,2]
[373198885,1752903046457,-4073.81700159,0.00018485,2]
[373198886,1752903046466,-1000.0,0.00018491,2]
[373198887,1752903046475,-222.03,0.00018499,2]
[373198888,1752903046484,-207.4,0.000185,2]
[373198889,1752903046493,-170.12,0.00018538,2]
[373198890,1752903046503,-164.57,0.00018632,2]
[373198891,1752903046512,-150.0,0.0001878,2]
[373198892,1752903046522,-16559.38471331,0.000191,2]
[373200930,1752903592669,299.999999,0.00025,120]
[373200931,1752903680252,163.27,0.00013699,2]
[373200933,1752903735959,300.0,0.00025,120]
[373200934,1752903771323,300.0,0.00025,120]
[373200935,1752903778590,517.0,0.00013772,2]
[373200937,1752903791632,300.0,0.00025,120]
[373200939,1752904003125,-411.32833412,0.00015782,4]
[373200942,1752904152070,-522.0,0.00015782,4]
[373200943,1752904232234,-520.44806859,0.00017359,2]
[373200944,1752904232244,-150.0,0.000175,2]
[373200945,1752904232253,-186.31,0.00017839,2]
[373200946,1752904232262,-522.0,0.00017888,6]
[373200947,1752904232272,-190.0,0.00017971,7]
[373200948,1752904232281,-150.0,0.00017997,2]
[373200949,1752904232290,-12.10963641,0.00018143,2]
[373200950,1752904232347,-190.65036359,0.00018143,2]
[373200951,1752904232356,-296.18956007,0.00018212,2]
[373200952,1752904232405,-703.81043993,0.00018212,2]
[373200953,1752904232414,-153.31826411,0.00018356,2]
[373200954,1752904232519,-5225.83173589,0.00018356,2]
[373200956,1752904232528,-164.57,0.00018371,2]
[373200958,1752904232537,-2345.98,0.00018473,2]
[373200960,1752904232547,-549.58,0.00018473,2]
[373200962,1752904232556,-207.4,0.000185,2]
[373200963,1752904232565,-150.0,0.00018581,2]
[373200964,1752904232575,-887.0,0.00018779,2]
[373200966,1752904232585,-887.0,0.00018859,2]
[373200968,1752904232595,-887.0,0.00018892,2]
[373200970,1752904232604,-191.41277261,0.00018899,2]
[373200972,1752904232614,-151.0,0.00018899,2]
[373200974,1752904232624,-150.0,0.00018901,2]
[373200976,1752904232633,-2500.0,0.00018999,2]
[373200978,1752904232643,-634.2305,0.00019,2]
[373200980,1752904232653,-1662.97669035,0.00019,2]
[373200982,1752904232664,-4100.48416,0.00019,2]
[373201023,1752904238124,-862.36787469,0.00019,2]